fUSD/lending_fUSD_20260217
["ID","MTS","AMOUNT","RATE_DAILY","PERIOD"]
[405825820,1771342245874,-500.0,0.00016737,2]
[405825821,1771342245884,-500.0,0.00016737,2]
[405825822,1771342245893,-596.0,0.00016737,2]
[405825823,1771342245902,-500.0,0.00016737,2]
[405825824,1771342245911,-500.0,0.00016737,2]
[405825825,1771342245920,-500.0,0.00016753,2]
[405825826,1771342245930,-500.0,0.00016753,2]
[405825827,1771342245939,-500.0,0.00016753,2]
[405825828,1771342245948,-894.19061326,0.00016754,2]
[405825829,1771342245958,-151.0,0.00016754,2]
[405825831,1771342245967,-500.0,0.00016792,2]
[405825832,1771342245976,-500.0,0.00016792,2]
[405825833,1771342245986,-500.0,0.00016792,2]
[405825834,1771342245995,-500.0,0.00016792,2]
[405825835,1771342246004,-329.95129651,0.00016792,2]
[405825836,1771342246014,-500.0,0.00016792,2]
[405825837,1771342246023,-500.0,0.00016792,2]
[405825838,1771342246032,-500.0,0.00016792,2]
[405825840,1771342246041,-500.0,0.00016792,2]
[405825841,1771342246051,-500.0,0.00016792,2]
[405825842,1771342246060,-596.0,0.00016792,2]
[405825843,1771342246069,-500.0,0.00016792,2]
[405825844,1771342246079,-500.0,0.00016792,2]
[405825845,1771342246088,-927.27566595,0.00016809,2]
[405825846,1771342246098,-151.0,0.00016809,2]
[405825847,1771342246107,-35716.85477238,0.00016818,2]
[405825848,1771342246117,-500.0,0.00016847,2]
[405825849,1771342246126,-500.0,0.00016847,2]
[405825850,1771342246136,-500.0,0.00016847,2]
[405825851,1771342246145,-500.0,0.00016847,2]
[405825852,1771342246154,-500.0,0.00016847,2]
[405825853,1771342246164,-500.0,0.00016847,2]
[405825854,1771342246173,-500.0,0.00016847,2]
[405825855,1771342246182,-500.0,0.00016847,2]
[405825856,1771342246192,-500.0,0.00016847,2]
[405825857,1771342246201,-596.0,0.00016847,2]
[405825858,1771342246211,-500.33776257,0.00016847,2]
[405825859,1771342246222,-500.0,0.00016847,2]
[405825860,1771342246231,-4609.466,0.00016849,2]
[405825861,1771342246241,-470.882,0.00016849,2]
[405825862,1771342246250,-961.58486559,0.00016864,2]
[405825863,1771342246259,-151.0,0.00016864,2]
[405825864,1771342246268,-150.0,0.00016875,2]
[405825865,1771342246277,-500.0,0.00016902,2]
[405825866,1771342246286,-500.0,0.00016902,2]
[405825867,1771342246295,-621.12228144,0.00016902,2]
[405825868,1771342246304,-500.0,0.00016902,2]
[405825869,1771342246313,-500.0,0.00016902,2]
[405825870,1771342246322,-464.38268717,0.00016902,2]
[405825871,1771342246332,-500.0,0.00016902,2]
[405825872,1771342246341,-500.0,0.00016902,2]
[405825873,1771342246350,-500.0,0.00016902,2]
[405825874,1771342246359,-596.0,0.00016902,2]
[405825875,1771342246368,-500.0,0.00016902,2]
[405825876,1771342246378,-771.01748645,0.00016917,2]
[405825877,1771342246387,-217.15233878,0.00016917,2]
[405825878,1771342246397,-1100.42979595,0.00016917,2]
[405825879,1771342246406,-217.15233878,0.00016917,2]
[405825880,1771342246415,-181.08010149,0.00016917,2]
[405825881,1771342246425,-200.0,0.00016917,2]
[405825882,1771342246434,-287.61899177,0.00016917,2]
[405825883,1771342246444,-997.16350561,0.00016919,2]
[405825884,1771342246453,-151.0,0.00016919,2]
[405825885,1771342246462,-500.0,0.00016957,2]
[405825886,1771342246472,-500.0,0.00016957,2]
[405825887,1771342246483,-500.0,0.00016957,2]
[405825888,1771342246495,-500.0,0.00016957,2]
[405825889,1771342246504,-500.0,0.00016957,2]
[405825890,1771342246513,-500.0,0.00016957,2]
[405825891,1771342246523,-500.0,0.00016957,2]
[405825892,1771342246532,-596.0,0.00016957,2]
[405825893,1771342246541,-500.0,0.00016957,2]
[405825894,1771342246551,-151.0,0.00016974,2]
[405825895,1771342246561,-758.85799306,0.0001699,2]
[405825896,1771342246570,-300.0,0.00017,2]
[405825897,1771342246579,-5000.0,0.00017,2]
[405825898,1771342246589,-722480.46228801,0.00017,2]
[405825899,1771342246599,-182.164397,0.00017,2]
[405825900,1771342246608,-182.164397,0.00017,2]
[405825901,1771342246617,-182.164397,0.00017,2]
[405825902,1771342246627,-182.164397,0.00017,2]
[405825903,1771342246636,-3701.0,0.00017,2]
[405825904,1771342246646,-151.0,0.00017,2]
[405825905,1771342246655,-151.0,0.00017,2]
[405825906,1771342246664,-500.0,0.00017011,2]
[405825907,1771342246673,-500.0,0.00017011,2]
[405825908,1771342246682,-500.0,0.00017011,2]
[405825909,1771342246691,-500.0,0.00017011,2]
[405825910,1771342246701,-500.0,0.00017011,2]
[405825911,1771342246710,-500.0,0.00017011,2]
[405825912,1771342246720,-500.0,0.00017011,2]
[405825913,1771342246729,-596.0,0.00017011,2]
[405825914,1771342246738,-500.0,0.00017011,2]
[405825915,1771342246748,-151.0,0.00017029,2]
[405825916,1771342246757,-500.0,0.00017066,2]
[405825917,1771342246766,-500.0,0.00017066,2]
[405825918,1771342246775,-500.0,0.00017066,2]
[405825919,1771342246785,-155.81655615,0.00017066,2]
[405825920,1771342246794,-500.0,0.00017066,2]
[405825921,1771342246803,-500.0,0.00017066,2]
[405825922,1771342246813,-500.0,0.00017066,2]
[405825923,1771342246822,-596.0,0.00017066,2]
[405825924,1771342246831,-500.0,0.00017066,2]
[405825925,1771342246841,-151.0,0.00017084,2]
[405825926,1771342246850,-150.0,0.000171,2]
[405825927,1771342246859,-500.0,0.00017121,2]
[405825928,1771342246868,-500.0,0.00017121,2]
[405825929,1771342246877,-500.0,0.00017121,2]
[405825930,1771342246886,-500.0,0.00017121,2]
[405825931,1771342246896,-500.0,0.00017121,2]
[405825932,1771342246905,-500.0,0.00017121,2]
[405825933,1771342246915,-596.0,0.00017121,2]
[405825934,1771342246924,-500.0,0.00017121,2]
[405825935,1771342246934,-267.05598539,0.00017139,2]
[405825936,1771342246943,-3930.0,0.00017147,2]
[405825937,1771342246953,-500.0,0.00017176,2]
[405825938,1771342246962,-500.0,0.00017176,2]
[405825939,1771342246972,-500.0,0.00017176,2]
[405825940,1771342246982,-500.0,0.00017176,2]
[405825941,1771342246994,-500.0,0.00017176,2]
[405825942,1771342247004,-361.9355564,0.00017176,2]
[405825943,1771342247013,-596.0,0.00017176,2]
[405825944,1771342247023,-500.0,0.00017176,2]
[405825945,1771342247033,-150.0,0.00017202,2]
[405825946,1771342247042,-500.0,0.00017202,2]
[405825947,1771342247052,-466.0,0.00017202,2]
[405825948,1771342247061,-500.0,0.00017202,2]
[405825949,1771342247071,-350.0,0.00017205,2]
[405825950,1771342247080,-350.0,0.00017207,2]
[405825951,1771342247090,-500.0,0.00017231,2]
[405825952,1771342247099,-500.0,0.00017231,2]
[405825953,1771342247109,-500.0,0.00017231,2]
[405825954,1771342247118,-224.65460803,0.00017231,2]
[405825955,1771342247128,-500.0,0.00017231,2]
[405825956,1771342247138,-596.0,0.00017231,2]
[405825957,1771342247147,-500.0,0.00017231,2]
[405825958,1771342247156,-151.2254874,0.00017257,2]
[405825959,1771342247165,-500.0,0.00017257,2]
[405825960,1771342247175,-466.0,0.00017257,2]
[405825961,1771342247184,-500.0,0.00017257,2]
[405825962,1771342247194,-1088.37215301,0.00017261,2]
[405825963,1771342247203,-500.0,0.00017285,2]
[405825964,1771342247212,-500.0,0.00017285,2]
[405825965,1771342247226,-292.49812506,0.00017285,2]
[405825966,1771342247235,-500.0,0.00017285,2]
[405825967,1771342247244,-596.0,0.00017285,2]
[405825968,1771342247254,-498.26652801,0.00017285,2]
[405825969,1771342247263,-500.0,0.00017312,2]
[405825970,1771342247272,-466.0,0.00017312,2]
[405825971,1771342247281,-220.15883999,0.00017312,2]
[405825972,1771342247290,-150.0,0.00017325,2]
[405825973,1771342247300,-473.31058807,0.00017326,2]
[405825974,1771342247310,-500.0,0.0001734,2]
[405825975,1771342247319,-500.0,0.0001734,2]
[405825976,1771342247329,-611.76249723,0.0001734,2]
[405825977,1771342247339,-596.0,0.0001734,2]
[405825978,1771342247348,-500.0,0.00017366,2]
[405825979,1771342247358,-466.0,0.00017366,2]
[405825980,1771342247367,-500.0,0.00017395,2]
[405825981,1771342247377,-500.0,0.00017395,2]
[405825982,1771342247387,-596.0,0.00017395,2]
[405825983,1771342247396,-2555.4951848,0.000174,5]
[405825984,1771342247405,-500.0,0.00017421,2]
[405825985,1771342247415,-466.0,0.00017421,2]
[405825986,1771342247425,-266.33885806,0.0001745,2]
[405825987,1771342247435,-500.0,0.0001745,2]
[405825988,1771342247445,-596.0,0.0001745,2]
[405825989,1771342247454,-799.54513345,0.00017465,2]
[405825990,1771342247464,-225.18697532,0.00017465,2]
[405825991,1771342247482,-166.95668844,0.00017465,2]
[405825992,1771342247494,-187.78006525,0.00017465,2]
[405825993,1771342247503,-298.26089446,0.00017465,2]
[405825994,1771342247513,-500.0,0.00017476,2]
[405825995,1771342247524,-466.0,0.00017476,2]
[405825996,1771342247534,-350.0,0.00017503,2]
[405825997,1771342247544,-500.0,0.00017505,2]
[405825998,1771342247554,-596.0,0.00017505,2]
[405825999,1771342247566,-500.0,0.00017531,2]
[405826000,1771342247576,-466.0,0.00017531,2]
[405826001,1771342247586,-258.29145491,0.00017533,2]
[405826002,1771342247595,-150.0,0.0001755,2]
[405826003,1771342247605,-481.0942881,0.00017559,2]
[405826004,1771342247615,-596.0,0.00017559,2]
[405826005,1771342247624,-500.0,0.00017586,2]
[405826006,1771342247634,-466.0,0.00017586,2]
[405826007,1771342247643,-187.0,0.00017607,2]
[405826008,1771342247653,-596.0,0.00017614,2]
[405826009,1771342247663,-187.0,0.00017639,2]
[405826010,1771342247672,-6001.36620396,0.0001764,2]
[405826011,1771342247682,-512.26030593,0.0001764,2]
[405826012,1771342247691,-466.0,0.0001764,2]
[405826013,1771342247701,-596.0,0.00017669,2]
[405826014,1771342247711,-153.0,0.00017686,3]
[405826015,1771342247723,-466.0,0.00017695,2]
[405826016,1771342247734,-784.32813885,0.000177,2]
[405826017,1771342247744,-403.0,0.000177,5]
[405826018,1771342247754,-596.0,0.00017724,2]
[405826019,1771342247763,-187.0,0.0001773,2]
[405826020,1771342247773,-168.3888056,0.00017738,2]
[405826021,1771342247782,-160.0,0.00017738,2]
[405826022,1771342247792,-466.0,0.0001775,2]
[405826023,1771342247801,-150.0,0.00017775,2]
[405826024,1771342247811,-596.0,0.00017778,2]
[405826025,1771342247821,-187.0,0.00017795,2]
[405826026,1771342247830,-466.0,0.00017805,2]
[405826027,1771342247840,-444.64,0.00017808,2]
[405826028,1771342247850,-500.0,0.00017808,2]
[405826029,1771342247860,-250.0,0.00017808,20]
[405826030,1771342247871,-250.0,0.00017808,20]
[405826031,1771342247882,-250.0,0.00017808,20]
[405826032,1771342247892,-250.0,0.00017808,20]
[405826033,1771342247902,-250.0,0.00017808,20]
[405826034,1771342247912,-250.0,0.00017808,20]
[405826035,1771342247922,-250.0,0.00017808,20]
[405826036,1771342247932,-250.0,0.00017808,20]
[405826037,1771342247943,-250.0,0.00017808,20]
[405826038,1771342247953,-250.0,0.00017808,20]
[405826039,1771342247963,-250.0,0.00017808,20]
[405826040,1771342247977,-250.0,0.00017808,20]
[405826041,1771342247987,-250.0,0.00017808,20]
[405826042,1771342247997,-250.0,0.00017808,20]
[405826043,1771342248008,-250.0,0.00017808,20]
[405826044,1771342248018,-250.0,0.00017808,20]
[405826045,1771342248028,-250.0,0.00017808,20]
[405826046,1771342248038,-250.0,0.00017808,20]
[405826047,1771342248048,-250.0,0.00017808,20]
[405826048,1771342248058,-250.0,0.00017808,20]
[405826049,1771342248067,-250.0,0.00017808,20]
[405826050,1771342248077,-250.0,0.00017808,20]
[405826051,1771342248087,-250.0,0.00017808,20]
[405826052,1771342248097,-250.0,0.00017808,20]
[405826053,1771342248107,-250.0,0.00017808,20]
[405826054,1771342248117,-250.0,0.00017808,20]
[405826055,1771342248127,-250.0,0.00017808,20]
[405826056,1771342248137,-250.0,0.00017808,20]
[405826057,1771342248147,-250.0,0.00017808,20]
[405826058,1771342248157,-250.0,0.00017808,20]
[405826059,1771342248167,-250.0,0.00017808,20]
[405826060,1771342248177,-250.0,0.00017808,20]
[405826061,1771342248187,-250.0,0.00017808,20]
[405826062,1771342248197,-250.0,0.00017808,20]
[405826063,1771342248207,-250.0,0.00017808,20]
[405826064,1771342248219,-250.0,0.00017808,20]
[405826065,1771342248229,-250.0,0.00017808,20]
[405826066,1771342248239,-250.0,0.00017808,20]
[405826067,1771342248248,-250.0,0.00017808,20]
[405826068,1771342248258,-250.0,0.00017808,20]
[405826069,1771342248267,-250.0,0.00017808,20]
[405826070,1771342248277,-250.0,0.00017808,20]
[405826071,1771342248287,-250.0,0.00017808,20]
[405826072,1771342248297,-250.0,0.00017808,20]
[405826073,1771342248307,-250.0,0.00017808,20]
[405826074,1771342248318,-250.0,0.00017808,20]
[405826075,1771342248329,-250.0,0.00017808,20]
[405826076,1771342248338,-250.0,0.00017808,20]
[405826077,1771342248349,-250.0,0.00017808,20]
[405826078,1771342248358,-250.0,0.00017808,20]
[405826079,1771342248368,-250.0,0.00017808,20]
[405826080,1771342248378,-250.0,0.00017808,20]
[405826081,1771342248388,-250.0,0.00017808,20]
[405826082,1771342248398,-250.0,0.00017808,20]
[405826083,1771342248407,-250.0,0.00017808,20]
[405826084,1771342248417,-250.0,0.00017808,20]
[405826085,1771342248427,-250.0,0.00017808,20]
[405826086,1771342248436,-250.0,0.00017808,20]
[405826087,1771342248446,-250.0,0.00017808,20]
[405826088,1771342248457,-250.0,0.00017808,20]
[405826089,1771342248467,-250.0,0.00017808,20]
[405826090,1771342248485,-250.0,0.00017808,20]
[405826091,1771342248494,-250.0,0.00017808,20]
[405826092,1771342248504,-250.0,0.00017808,20]
[405826093,1771342248515,-250.0,0.00017808,20]
[405826094,1771342248527,-250.0,0.00017808,20]
[405826095,1771342248537,-250.0,0.00017808,20]
[405826096,1771342248547,-250.0,0.00017808,20]
[405826097,1771342248558,-352.041673,0.00017808,20]
[405826098,1771342248568,-151.0,0.00017808,2]
[405826099,1771342248579,-151.0,0.00017808,2]
[405826100,1771342248588,-151.0,0.00017808,2]
[405826101,1771342248598,-154.469161,0.00017808,2]
[405826102,1771342248607,-1192.56,0.0001782,2]
[405826103,1771342248617,-1192.56,0.0001782,2]
[405826104,1771342248627,-600.2655769,0.00017833,2]
[405826105,1771342248637,-1000.0,0.00017839,2]
[405826106,1771342248646,-500.0,0.00017855,2]
[405826107,1771342248655,-500.0,0.00017856,2]
[405826108,1771342248665,-466.0,0.0001786,2]
[405826109,1771342248675,-187.0,0.00017862,2]
[405826110,1771342248685,-187.0,0.00017874,2]
[405826111,1771342248694,-35716.85477238,0.00017888,2]
[405826112,1771342248704,-2663.61959296,0.000179,2]
[405826113,1771342248713,-4587.476,0.000179,2]
[405826114,1771342248726,-5000.0,0.000179,2]
[405826115,1771342248736,-10000.0,0.000179,2]
[405826116,1771342248745,-799.75222388,0.000179,2]
[405826117,1771342248755,-25000.0,0.000179,3]
[405826118,1771342248764,-494.56310307,0.000179,2]
[405826119,1771342248773,-6963.77975044,0.000179,2]
[405826120,1771342248782,-193.89094504,0.000179,2]
[405826121,1771342248792,-6247.97800353,0.000179,2]
[405826122,1771342248801,-195.74,0.00017904,2]
[405826123,1771342248811,-466.0,0.00017914,2]
[405826124,1771342248821,-187.0,0.00017929,2]
[405826125,1771342248830,-168.0,0.00017944,2]
[405826126,1771342248840,-98253.8995357,0.00017951,2]
[405826127,1771342248850,-466.0,0.00017969,2]
[405826128,1771342248859,-15469.0,0.00017973,2]
[405826129,1771342248868,-500.0,0.00017973,2]
[405826130,1771342248878,-500.0,0.00017973,2]
[405826131,1771342248888,-163.87964352,0.00017973,2]
[405826132,1771342248898,-500.0,0.00017973,2]
[405826133,1771342248908,-504.09468333,0.00017973,2]
[405826134,1771342248918,-525.66819458,0.00017973,2]
[405826135,1771342248928,-500.0,0.00017973,2]
[405826136,1771342248938,-500.0,0.00017973,2]
[405826137,1771342248948,-500.0,0.00017973,2]
[405826138,1771342248957,-500.0,0.00017973,2]
[405826139,1771342248967,-502.15975128,0.00017973,2]
[405826140,1771342248978,-161.87499248,0.00017973,2]
[405826141,1771342248988,-502.68727614,0.00017973,2]
[405826142,1771342248998,-500.0,0.00017973,2]
[405826143,1771342249008,-500.0,0.00017973,2]
[405826144,1771342249017,-500.0,0.00017973,2]
[405826145,1771342249027,-500.0,0.00017973,2]
[405826146,1771342249037,-500.0,0.00017973,2]
[405826147,1771342249047,-500.0,0.00017973,2]
[405826148,1771342249056,-500.0,0.00017973,2]
[405826149,1771342249066,-500.0,0.00017973,2]
[405826150,1771342249076,-500.0,0.00017973,2]
[405826151,1771342249086,-162.40112722,0.00017973,2]
[405826152,1771342249096,-500.93096914,0.00017973,2]
[405826153,1771342249106,-500.0,0.00017973,2]
[405826154,1771342249115,-160.44342054,0.00017973,2]
[405826155,1771342249125,-514.27467488,0.00017973,2]
[405826156,1771342249135,-501.43225284,0.00017973,2]
[405826157,1771342249145,-502.22718587,0.00017973,2]
[405826158,1771342249154,-504.64635869,0.00017973,2]
[405826159,1771342249164,-501.86536618,0.00017973,2]
[405826160,1771342249174,-500.29634492,0.00017973,2]
[405826161,1771342249184,-151.02975848,0.00017973,2]
[405826162,1771342249194,-161.95965132,0.00017973,2]
[405826163,1771342249204,-501.23450591,0.00017973,2]
[405826164,1771342249214,-505.14943602,0.00017973,2]
[405826165,1771342249225,-500.0,0.00017973,2]
[405826166,1771342249235,-500.0,0.00017973,2]
[405826167,1771342249244,-500.0,0.00017973,2]
[405826168,1771342249255,-503.17452108,0.00017973,2]
[405826169,1771342249265,-160.29464371,0.00017973,2]
[405826170,1771342249275,-500.0,0.00017973,2]
[405826171,1771342249285,-436.04334629,0.00017973,2]
[405826172,1771342249294,-502.80271569,0.00017973,2]
[405826173,1771342249304,-500.0,0.00017973,2]
[405826174,1771342249314,-500.0,0.00017973,2]
[405826175,1771342249324,-161.02829907,0.00017973,2]
[405826176,1771342249334,-503.05494034,0.00017973,2]
[405826177,1771342249344,-285.23122629,0.00017973,2]
[405826178,1771342249353,-500.0,0.00017973,2]
[405826179,1771342249363,-500.0,0.00017973,2]
[405826180,1771342249373,-500.0,0.00017973,2]
[405826181,1771342249383,-500.0,0.00017973,2]
[405826182,1771342249392,-597.93872342,0.00017973,2]
[405826183,1771342249402,-500.0,0.00017973,2]
[405826184,1771342249412,-500.0,0.00017973,2]
[405826185,1771342249422,-500.0,0.00017973,2]
[405826186,1771342249432,-500.0,0.00017973,2]
[405826187,1771342249442,-500.0,0.00017973,2]
[405826188,1771342249452,-500.0,0.00017973,2]
[405826189,1771342249461,-354330.2969501,0.00017973,2]
[405826190,1771342249474,-1022.99162526,0.00017978,2]
[405826191,1771342249485,-226.42090261,0.00017982,2]
[405826192,1771342249497,-947.1253165,0.00017982,2]
[405826193,1771342249506,-118477.2706242,0.00017987,2]
[405826194,1771342249516,-509.0,0.00017987,2]
[405826195,1771342249527,-1360.75,0.00017987,2]
[405826196,1771342249537,-500.0,0.00017987,2]
[405826197,1771342249547,-872.66,0.00017987,2]
[405826198,1771342249557,-529.40507312,0.00017987,2]
[405826199,1771342249567,-971.38,0.00017987,2]
[405826200,1771342249578,-10150.6367822,0.00017988,2]
[405826201,1771342249588,-394.84264916,0.00017999,2]
[405826202,1771342249815,-402.56825335,0.00017999,2]
[405826203,1771342249829,-509.0,0.00017999,2]
[405826204,1771342249839,-509.0,0.00017999,2]
[405826205,1771342249849,-509.0,0.00017999,2]
[405826206,1771342249859,-509.0,0.00017999,2]
[405826207,1771342249868,-509.0,0.00017999,2]
[405826208,1771342249878,-509.0,0.00017999,2]
[405826209,1771342249887,-509.0,0.00017999,2]
[405826210,1771342249897,-509.0,0.00017999,2]
[405826211,1771342249906,-509.0,0.00017999,2]
[405826212,1771342249915,-509.0,0.00017999,2]
[405826213,1771342249924,-509.0,0.00017999,2]
[405826214,1771342249934,-509.0,0.00017999,2]
[405826215,1771342249943,-509.0,0.00017999,2]
[405826216,1771342249953,-509.0,0.00017999,2]
[405826217,1771342249962,-509.0,0.00017999,2]
[405826218,1771342249972,-509.0,0.00017999,2]
[405826219,1771342249982,-509.0,0.00017999,2]
[405826220,1771342249991,-509.0,0.00017999,2]
[405826221,1771342250001,-509.0,0.00017999,2]
[405826222,1771342250011,-509.0,0.00017999,2]
[405826223,1771342250020,-509.0,0.00017999,2]
[405826224,1771342250030,-509.19,0.00017999,2]
[405826225,1771342250039,-300.0,0.00017999,2]
[405826226,1771342250049,-300.0,0.00017999,2]
[405826227,1771342250058,-666.0,0.00017999,2]
[405826228,1771342250068,-300.0,0.00017999,2]
[405826229,1771342250078,-1360.75,0.00017999,2]
[405826230,1771342250088,-1360.75,0.00017999,2]
[405826231,1771342250098,-1360.75,0.00017999,2]
[405826232,1771342250109,-1360.75,0.00017999,2]
[405826233,1771342250118,-1360.75,0.00017999,2]
[405826234,1771342250127,-1360.75,0.00017999,2]
[405826235,1771342250137,-1360.75,0.00017999,2]
[405826236,1771342250146,-1360.75,0.00017999,2]
[405826237,1771342250156,-1360.75,0.00017999,2]
[405826238,1771342250165,-1360.75,0.00017999,2]
[405826239,1771342250175,-1360.75,0.00017999,2]
[405826240,1771342250185,-1360.75,0.00017999,2]
[405826241,1771342250194,-1360.75,0.00017999,2]
[405826242,1771342250203,-1360.75,0.00017999,2]
[405826243,1771342250213,-1360.75,0.00017999,2]
[405826244,1771342250223,-1360.75,0.00017999,2]
[405826245,1771342250233,-1360.75,0.00017999,2]
[405826246,1771342250243,-1360.75,0.00017999,2]
[405826247,1771342250252,-1360.75,0.00017999,2]
[405826248,1771342250261,-1360.75,0.00017999,2]
[405826249,1771342250271,-1360.76754888,0.00017999,2]
[405826250,1771342250281,-300.0,0.00017999,2]
[405826251,1771342250291,-500.0,0.00017999,2]
[405826252,1771342250300,-500.0,0.00017999,2]
[405826253,1771342250310,-500.0,0.00017999,2]
[405826254,1771342250319,-500.0,0.00017999,2]
[405826255,1771342250329,-500.0,0.00017999,2]
[405826256,1771342250340,-500.0,0.00017999,2]
[405826257,1771342250349,-500.0,0.00017999,2]
[405826258,1771342250360,-465.55674509,0.00017999,2]
[405826259,1771342250370,-872.66,0.00017999,2]
[405826260,1771342250380,-872.66,0.00017999,2]
[405826261,1771342250389,-872.66,0.00017999,2]
[405826262,1771342250399,-872.66,0.00017999,2]
[405826263,1771342250409,-872.66,0.00017999,2]
[405826264,1771342250419,-872.66,0.00017999,2]
[405826265,1771342250429,-872.66,0.00017999,2]
[405826266,1771342250438,-872.66,0.00017999,2]
[405826267,1771342250448,-872.66,0.00017999,2]
[405826268,1771342250458,-872.66,0.00017999,2]
[405826269,1771342250470,-872.66,0.00017999,2]
[405826270,1771342250480,-872.66,0.00017999,2]
[405826271,1771342250494,-872.66,0.00017999,2]
[405826272,1771342250504,-872.66,0.00017999,2]
[405826273,1771342250515,-872.66,0.00017999,2]
[405826274,1771342250524,-872.66,0.00017999,2]
[405826275,1771342250535,-872.66,0.00017999,2]
[405826276,1771342250546,-872.66,0.00017999,2]
[405826277,1771342250555,-872.66,0.00017999,2]
[405826278,1771342250567,-872.66,0.00017999,2]
[405826279,1771342250576,-872.66,0.00017999,2]
[405826280,1771342250586,-872.89213972,0.00017999,2]
[405826281,1771342250596,-971.38,0.00017999,2]
[405826282,1771342250605,-971.38,0.00017999,2]
[405826283,1771342250615,-971.38,0.00017999,2]
[405826284,1771342250624,-971.38,0.00017999,2]
[405826285,1771342250634,-971.38,0.00017999,2]
[405826286,1771342250643,-971.38,0.00017999,2]
[405826287,1771342250653,-971.38,0.00017999,2]
[405826288,1771342250663,-971.38,0.00017999,2]
[405826289,1771342250673,-971.38,0.00017999,2]
[405826290,1771342250682,-971.38,0.00017999,2]
[405826291,1771342250691,-971.38,0.00017999,2]
[405826292,1771342250701,-971.38,0.00017999,2]
[405826293,1771342250711,-971.38,0.00017999,2]
[405826294,1771342250722,-971.38,0.00017999,2]
[405826295,1771342250732,-971.38,0.00017999,2]
[405826296,1771342250741,-971.38,0.00017999,2]
[405826297,1771342250751,-971.38,0.00017999,2]
[405826298,1771342250761,-971.38,0.00017999,2]
[405826299,1771342250770,-971.38,0.00017999,2]
[405826300,1771342250780,-971.38,0.00017999,2]
[405826301,1771342250790,-971.38,0.00017999,2]
[405826302,1771342250799,-971.39885832,0.00017999,2]
[405826303,1771342250809,-300.0,0.00017999,2]
[405826304,1771342250819,-300.0,0.00017999,2]
[405826305,1771342250830,-666.0,0.00017999,2]
[405826306,1771342250840,-666.0,0.00017999,2]
[405826307,1771342250851,-150.0,0.00017999,2]
[405826308,1771342250861,-150.0,0.00017999,2]
[405826309,1771342250871,-150.0,0.00017999,2]
[405826310,1771342250881,-150.0,0.00017999,2]
[405826311,1771342250891,-150.0,0.00017999,2]
[405826312,1771342250900,-150.0,0.00017999,2]
[405826313,1771342250910,-150.0,0.00017999,2]
[405826314,1771342250919,-150.0,0.00017999,2]
[405826315,1771342250929,-150.0,0.00017999,2]
[405826316,1771342250938,-150.0,0.00017999,2]
[405826317,1771342250948,-166.80967626,0.00017999,2]
[405826318,1771342250957,-28610.11146738,0.00017999,2]
[405826319,1771342250968,-262.13935403,0.00018,2]
[405826320,1771342250977,-316071.53790621,0.00018,2]
[405826321,1771342251530,-8849.29004784,0.00018,2]